[Event "2026 European Womens Championship"]
[Site "Batumi, GE"]
[Date "2026.05.27"]
[Round "3"]
[White "Mamedjarova, Turkan"]
[Black "Mkrtchyan, Mariam"]
[Result "1/2-1/2"]
[Board "25"]
[TimeControl "5400+30"]
[WhiteFideId "13402005"]
[BlackFideId "13310828"]
[WhiteElo "2222"]
[BlackElo "2365"]
[WhiteTitle "WGM"]
[BlackTitle "WGM"]
[WhiteClock "0:13:24"]
[BlackClock "0:04:44"]
[Variant "Standard"]

1. d4 {[%clk 1:30:57]}  d5 {[%clk 1:30:13]} 2. c4 {[%clk 1:30:40]}  e6 {[%clk 1:30:31]} 3. Nf3 {[%clk 1:30:45]}  Nf6 {[%clk 1:30:32]}
4. Nc3 {[%clk 1:30:54]}  c6 {[%clk 1:30:41]} 5. e3 {[%clk 1:30:56]}  Nbd7 {[%clk 1:30:34]} 6. Qc2 {[%clk 1:29:27]}  Bd6 {[%clk 1:30:52]}
7. Bd3 {[%clk 1:28:21]}  dxc4 {[%clk 1:30:28]} 8. Bxc4 {[%clk 1:28:49]}  b5 {[%clk 1:30:52]} 9. Be2 {[%clk 1:28:47]}  O-O {[%clk 1:28:36]}
10. O-O {[%clk 1:28:57]}  a6 {[%clk 1:28:49]} 11. Rd1 {[%clk 1:16:52]}  Qc7 {[%clk 1:25:09]} 12. h3 {[%clk 1:14:28]}  Re8 {[%clk 1:21:27]}
13. a3 {[%clk 1:06:48]}  c5 {[%clk 1:08:02]} 14. dxc5 {[%clk 1:00:06]}  Bxc5 {[%clk 1:07:15]} 15. b4 {[%clk 0:59:44]}  Bf8 {[%clk 0:50:15]}
16. Bb2 {[%clk 0:44:59]}  Bb7 {[%clk 0:50:35]} 17. Rac1 {[%clk 0:45:17]}  Rac8 {[%clk 0:51:00]} 18. Qb1 {[%clk 0:44:55]}  Qb8 {[%clk 0:50:45]}
19. Ng5 {[%clk 0:42:38]}  h6 {[%clk 0:41:00]} 20. Nge4 {[%clk 0:42:37]}  Nxe4 {[%clk 0:37:32]} 21. Nxe4 {[%clk 0:42:44]}  Nb6 {[%clk 0:37:42]}
22. Ng3 {[%clk 0:29:58]}  Qa8 {[%clk 0:33:08]} 23. e4 {[%clk 0:28:02]}  Rxc1 {[%clk 0:29:35]} 24. Qxc1 {[%clk 0:25:09]}  Rd8 {[%clk 0:25:44]}
25. Rxd8 {[%clk 0:21:34]}  Qxd8 {[%clk 0:26:13]} 26. Qe3 {[%clk 0:21:46]}  Nc4 {[%clk 0:21:03]} 27. Bxc4 {[%clk 0:21:38]}  bxc4 {[%clk 0:21:31]}
28. Bd4 {[%clk 0:21:18]}  Bc6 {[%clk 0:12:47]} 29. Qc3 {[%clk 0:15:28]}  Bb5 {[%clk 0:13:00]} 30. a4 {[%clk 0:11:54]}  Bxa4 {[%clk 0:12:15]}
31. Qxc4 {[%clk 0:12:19]}  Bb5 {[%clk 0:11:03]} 32. Qc3 {[%clk 0:12:42]}  h5 {[%clk 0:09:57]} 33. e5 {[%clk 0:09:48]}  h4 {[%clk 0:08:46]}
34. Ne4 {[%clk 0:08:29]}  Qd5 {[%clk 0:09:05]} 35. f3 {[%clk 0:06:54]}  Bc6 {[%clk 0:06:29]} 36. Kh2 {[%clk 0:04:20]}  Be7 {[%clk 0:06:32]}
37. Nf2 {[%clk 0:02:18]}  Qb5 {[%clk 0:05:15]} 38. Nd3 {[%clk 0:02:00]}  Bg5 {[%clk 0:05:18]} 39. Bc5 {[%clk 0:01:06]}  Qa4 {[%clk 0:04:18]}
40. Qd4 {[%clk 0:00:59]}  Qc2 {[%clk 0:02:54]} 41. Qg4 {[%clk 0:26:38]}  Qd2 {[%clk 0:12:35]} 42. b5 {[%clk 0:23:01]}  axb5 {[%clk 0:11:57]}
43. Bb4 {[%clk 0:23:18]}  Qe3 {[%clk 0:11:36]} 44. Bc5 {[%clk 0:23:29]}  Qxd3 {[%clk 0:11:04]} 45. Qxg5 {[%clk 0:23:55]}  Bxf3 {[%clk 0:11:24]}
46. Bd6 {[%clk 0:22:59]}  Bd1 {[%clk 0:08:12]} 47. Qd8+ {[%clk 0:20:18]}  Kh7 {[%clk 0:08:41]} 48. Qxh4+ {[%clk 0:20:42]}  Kg6 {[%clk 0:07:32]}
49. Qf4 {[%clk 0:13:30]}  Qf5 {[%clk 0:06:42]} 50. Qg3+ {[%clk 0:13:10]}  Kh7 {[%clk 0:07:10]} 51. Qh4+ {[%clk 0:13:16]}  Qh5 {[%clk 0:06:26]}
52. Qe4+ {[%clk 0:12:52]}  Qg6 {[%clk 0:04:33]} 53. Qh4+ {[%clk 0:13:02]}  Qh5 {[%clk 0:04:44]} 54. Qe4+ {[%clk 0:13:24]}  Qg6 {[%clk 0:04:44]} 1/2-1/2

[Event "2026 European Womens Championship"]
[Site "Batumi, GE"]
[Date "2026.05.27"]
[Round "3"]
[White "Bivol, Alina"]
[Black "Bashylina, Luisa"]
[Result "1-0"]
[Board "26"]
[TimeControl "5400+30"]
[WhiteFideId "4100123"]
[BlackFideId "12983292"]
[WhiteElo "2361"]
[BlackElo "2208"]
[WhiteTitle "IM"]
[BlackTitle "WFM"]
[WhiteClock "0:41:14"]
[BlackClock "0:01:57"]
[Variant "Standard"]

1. e4 {[%clk 1:30:58]}  e5 {[%clk 1:30:56]} 2. Nf3 {[%clk 1:31:03]}  Nc6 {[%clk 1:31:22]} 3. Bb5 {[%clk 1:31:25]}  a6 {[%clk 1:31:47]}
4. Ba4 {[%clk 1:31:47]}  Nf6 {[%clk 1:32:13]} 5. Qe2 {[%clk 1:32:08]}  Be7 {[%clk 1:24:48]} 6. c3 {[%clk 1:29:37]}  b5 {[%clk 1:22:29]}
7. Bb3 {[%clk 1:29:53]}  d6 {[%clk 1:17:51]} 8. O-O {[%clk 1:29:04]}  O-O {[%clk 1:16:44]} 9. Rd1 {[%clk 1:29:01]}  Bg4 {[%clk 1:09:07]}
10. h3 {[%clk 1:28:06]}  Bh5 {[%clk 1:06:12]} 11. d3 {[%clk 1:28:27]}  Na5 {[%clk 0:56:38]} 12. Bc2 {[%clk 1:28:29]}  Re8 {[%clk 0:51:28]}
13. Nbd2 {[%clk 1:27:36]}  c5 {[%clk 0:49:15]} 14. Nf1 {[%clk 1:25:55]}  Nc6 {[%clk 0:43:17]} 15. Ng3 {[%clk 1:23:02]}  Bg6 {[%clk 0:42:20]}
16. Nh4 {[%clk 1:22:05]}  d5 {[%clk 0:41:22]} 17. Nhf5 {[%clk 1:18:25]}  Bf8 {[%clk 0:40:07]} 18. Bg5 {[%clk 1:14:35]}  h6 {[%clk 0:36:29]}
19. Bh4 {[%clk 1:10:22]}  Bxf5 {[%clk 0:26:24]} 20. Nxf5 {[%clk 1:10:16]}  g6 {[%clk 0:26:19]} 21. exd5 {[%clk 1:07:41]}  Qxd5 {[%clk 0:24:34]}
22. Bb3 {[%clk 0:57:38]}  Qd7 {[%clk 0:21:46]} 23. Nxh6+ {[%clk 0:56:12]}  Bxh6 {[%clk 0:19:58]} 24. Bxf6 {[%clk 0:56:35]}  Qf5 {[%clk 0:17:28]}
25. Bh4 {[%clk 0:53:06]}  e4 {[%clk 0:16:15]} 26. g4 {[%clk 0:52:54]}  Qf4 {[%clk 0:14:31]} 27. Bg3 {[%clk 0:51:12]}  exd3 {[%clk 0:09:10]}
28. Qxd3 {[%clk 0:46:49]}  Qf6 {[%clk 0:08:45]} 29. Qd6 {[%clk 0:47:12]}  Qxd6 {[%clk 0:09:09]} 30. Rxd6 {[%clk 0:47:37]}  Ne7 {[%clk 0:09:33]}
31. Re1 {[%clk 0:45:43]}  c4 {[%clk 0:09:39]} 32. Bd1 {[%clk 0:45:21]}  a5 {[%clk 0:05:53]} 33. Bf3 {[%clk 0:45:21]}  Rac8 {[%clk 0:05:48]}
34. Rd7 {[%clk 0:45:11]}  Kf8 {[%clk 0:04:56]} 35. Rb7 {[%clk 0:44:47]}  b4 {[%clk 0:03:07]} 36. h4 {[%clk 0:43:02]}  Bd2 {[%clk 0:02:25]}
37. Rexe7 {[%clk 0:41:02]}  Rxe7 {[%clk 0:02:42]} 38. Bd6 {[%clk 0:41:22]}  Rce8 {[%clk 0:01:36]} 39. Bc6 {[%clk 0:41:09]}  bxc3 {[%clk 0:01:57]}
40. bxc3 {[%clk 0:41:14]} 1-0

[Event "2026 European Womens Championship"]
[Site "Batumi, GE"]
[Date "2026.05.27"]
[Round "3"]
[White "Milliet, Sophie"]
[Black "Tirpan, Ceren"]
[Result "1/2-1/2"]
[Board "27"]
[TimeControl "5400+30"]
[WhiteFideId "623725"]
[BlackFideId "26385309"]
[WhiteElo "2361"]
[BlackElo "2209"]
[WhiteTitle "IM"]
[BlackTitle "WFM"]
[WhiteClock "0:01:43"]
[BlackClock "0:05:22"]
[Variant "Standard"]

1. e4 {[%clk 1:30:56]}  c5 {[%clk 1:30:54]} 2. Nf3 {[%clk 1:31:22]}  Nc6 {[%clk 1:31:19]} 3. d4 {[%clk 1:31:33]}  cxd4 {[%clk 1:31:40]}
4. Nxd4 {[%clk 1:31:59]}  e6 {[%clk 1:32:00]} 5. Nc3 {[%clk 1:32:20]}  Qc7 {[%clk 1:32:26]} 6. g3 {[%clk 1:31:38]}  Nf6 {[%clk 1:30:18]}
7. Ndb5 {[%clk 1:21:36]}  Qb8 {[%clk 1:29:59]} 8. Bf4 {[%clk 1:21:34]}  e5 {[%clk 1:26:42]} 9. Bg5 {[%clk 1:20:54]}  a6 {[%clk 1:14:48]}
10. Bxf6 {[%clk 1:19:42]}  axb5 {[%clk 1:14:16]} 11. Bg5 {[%clk 1:19:34]}  Bb4 {[%clk 1:09:50]} 12. Bg2 {[%clk 1:11:27]}  Bxc3+ {[%clk 1:00:21]}
13. bxc3 {[%clk 1:11:54]}  Ra3 {[%clk 0:57:58]} 14. Bd2 {[%clk 0:57:51]}  O-O {[%clk 0:52:55]} 15. Rb1 {[%clk 0:43:36]}  Rxa2 {[%clk 0:49:33]}
16. Rxb5 {[%clk 0:38:35]}  Qa8 {[%clk 0:32:17]} 17. O-O {[%clk 0:38:46]}  Qa4 {[%clk 0:30:05]} 18. Rd5 {[%clk 0:39:00]}  d6 {[%clk 0:22:03]}
19. Rxd6 {[%clk 0:38:01]}  Qxc2 {[%clk 0:22:09]} 20. Qxc2 {[%clk 0:37:03]}  Rxc2 {[%clk 0:22:32]} 21. Rc1 {[%clk 0:37:02]}  Ra2 {[%clk 0:22:33]}
22. Be3 {[%clk 0:29:57]}  Na5 {[%clk 0:19:58]} 23. c4 {[%clk 0:21:38]}  Be6 {[%clk 0:19:42]} 24. c5 {[%clk 0:20:58]}  h6 {[%clk 0:18:47]}
25. Bf1 {[%clk 0:20:19]}  Ra4 {[%clk 0:14:14]} 26. Bd3 {[%clk 0:16:45]}  Rc8 {[%clk 0:12:40]} 27. Rb1 {[%clk 0:11:38]}  Bc4 {[%clk 0:10:39]}
28. Bc2 {[%clk 0:09:15]}  Ra2 {[%clk 0:11:02]} 29. Bd1 {[%clk 0:09:40]}  Be6 {[%clk 0:11:23]} 30. h4 {[%clk 0:06:34]}  Ra3 {[%clk 0:08:24]}
31. Be2 {[%clk 0:04:41]}  Nb3 {[%clk 0:03:35]} 32. Rbd1 {[%clk 0:00:42]}  Nd4 {[%clk 0:03:20]} 33. Bxd4 {[%clk 0:00:46]}  exd4 {[%clk 0:03:44]}
34. R6xd4 {[%clk 0:00:35]}  Rxc5 {[%clk 0:03:50]} 35. Rb4 {[%clk 0:00:48]}  Rb3 {[%clk 0:02:50]} 36. Rxb3 {[%clk 0:00:39]}  Bxb3 {[%clk 0:03:14]}
37. Rd8+ {[%clk 0:00:40]}  Kh7 {[%clk 0:03:38]} 38. Rb8 {[%clk 0:00:59]}  Rc7 {[%clk 0:03:25]} 39. f3 {[%clk 0:00:37]}  Ba4 {[%clk 0:03:07]}
40. Kf2 {[%clk 0:00:51]}  Bc6 {[%clk 0:02:12]} 41. Ke3 {[%clk 0:00:53]}  Re7 {[%clk 0:02:09]} 42. Rc8 {[%clk 0:23:43]}  g6 {[%clk 0:31:46]}
43. Bc4 {[%clk 0:19:11]}  Kg7 {[%clk 0:32:02]} 44. Kd4 {[%clk 0:19:03]}  g5 {[%clk 0:20:23]} 45. hxg5 {[%clk 0:17:23]}  hxg5 {[%clk 0:20:46]}
46. Bd5 {[%clk 0:17:42]}  Rd7 {[%clk 0:17:15]} 47. Kc5 {[%clk 0:13:26]}  Ba4 {[%clk 0:14:08]} 48. Rb8 {[%clk 0:10:56]}  Bd1 {[%clk 0:12:51]}
49. f4 {[%clk 0:10:52]}  gxf4 {[%clk 0:13:10]} 50. gxf4 {[%clk 0:11:21]}  Bf3 {[%clk 0:13:27]} 51. f5 {[%clk 0:06:40]}  Kf6 {[%clk 0:11:49]}
52. e5+ {[%clk 0:04:09]}  Kxe5 {[%clk 0:12:01]} 53. Bxf3 {[%clk 0:04:36]}  Kxf5 {[%clk 0:11:39]} 54. Bxb7 {[%clk 0:05:04]}  Rd2 {[%clk 0:11:28]}
55. Bd5 {[%clk 0:05:12]}  f6 {[%clk 0:11:30]} 56. Kd6 {[%clk 0:05:13]}  Rd1 {[%clk 0:11:06]} 57. Rb2 {[%clk 0:05:10]}  Rd4 {[%clk 0:09:46]}
58. Rg2 {[%clk 0:04:39]}  Rd1 {[%clk 0:09:36]} 59. Re2 {[%clk 0:04:45]}  Rd4 {[%clk 0:09:46]} 60. Kc5 {[%clk 0:04:53]}  Rd1 {[%clk 0:10:09]}
61. Bb3 {[%clk 0:04:53]}  Rf1 {[%clk 0:09:01]} 62. Kd4 {[%clk 0:04:41]}  Rf4+ {[%clk 0:08:03]} 63. Kd5 {[%clk 0:05:08]}  Rf1 {[%clk 0:08:07]}
64. Bc2 {[%clk 0:05:23]}  Kf4 {[%clk 0:05:40]} 65. Ke6 {[%clk 0:03:47]}  Kf3 {[%clk 0:04:49]} 66. Rd2 {[%clk 0:04:03]}  Rf2 {[%clk 0:04:38]}
67. Rd3+ {[%clk 0:04:04]}  Kg4 {[%clk 0:03:54]} 68. Rd4+ {[%clk 0:03:36]}  Kg5 {[%clk 0:03:20]} 69. Rd5+ {[%clk 0:03:57]}  Kg4 {[%clk 0:03:37]}
70. Bf5+ {[%clk 0:04:20]}  Kg5 {[%clk 0:03:59]} 71. Bd3+ {[%clk 0:04:22]}  f5 {[%clk 0:02:14]} 72. Bxf5 {[%clk 0:04:43]}  Re2+ {[%clk 0:02:39]}
73. Kd6 {[%clk 0:04:37]}  Kf4 {[%clk 0:03:03]} 74. Be6 {[%clk 0:04:50]}  Rh2 {[%clk 0:03:10]} 75. Rd4+ {[%clk 0:05:05]}  Ke3 {[%clk 0:03:33]}
76. Ra4 {[%clk 0:05:29]}  Rh5 {[%clk 0:03:18]} 77. Bd5 {[%clk 0:05:56]}  Rh8 {[%clk 0:03:08]} 78. Kc5 {[%clk 0:05:51]}  Rc8+ {[%clk 0:03:21]}
79. Bc6 {[%clk 0:06:18]}  Rh8 {[%clk 0:03:44]} 80. Ra3+ {[%clk 0:06:35]}  Kf4 {[%clk 0:04:09]} 81. Kd4 {[%clk 0:06:44]}  Rc8 {[%clk 0:03:35]}
82. Bd5 {[%clk 0:06:15]}  Rc1 {[%clk 0:03:31]} 83. Rf3 {[%clk 0:06:39]}  Kg4 {[%clk 0:03:56]} 84. Rf8 {[%clk 0:06:58]}  Re1 {[%clk 0:03:52]}
85. Be4 {[%clk 0:07:13]}  Ra1 {[%clk 0:03:06]} 86. Ke5 {[%clk 0:07:37]}  Ra5+ {[%clk 0:02:36]} 87. Bd5 {[%clk 0:08:05]}  Kg3 {[%clk 0:03:24]}
88. Rg8+ {[%clk 0:08:12]}  Kf2 {[%clk 0:03:35]} 89. Rg2+ {[%clk 0:08:29]}  Ke3 {[%clk 0:03:53]} 90. Rg3+ {[%clk 0:08:56]}  Kf2 {[%clk 0:04:12]}
91. Rf3+ {[%clk 0:09:16]}  Ke2 {[%clk 0:04:29]} 92. Rc3 {[%clk 0:08:16]}  Kd2 {[%clk 0:04:40]} 93. Rh3 {[%clk 0:07:36]}  Ke2 {[%clk 0:04:25]}
94. Kd4 {[%clk 0:07:36]}  Ra4+ {[%clk 0:04:18]} 95. Bc4+ {[%clk 0:07:39]}  Kf2 {[%clk 0:04:43]} 96. Rc3 {[%clk 0:06:47]}  Ra8 {[%clk 0:04:49]}
97. Rc2+ {[%clk 0:06:27]}  Kg3 {[%clk 0:05:10]} 98. Bd5 {[%clk 0:05:57]}  Ra4+ {[%clk 0:03:01]} 99. Ke5 {[%clk 0:06:22]}  Ra1 {[%clk 0:01:20]}
100. Rg2+ {[%clk 0:06:45]}  Kh3 {[%clk 0:01:46]} 101. Rg8 {[%clk 0:07:01]}  Kh4 {[%clk 0:01:48]} 102. Kf4 {[%clk 0:07:18]}  Ra4+ {[%clk 0:01:40]}
103. Be4 {[%clk 0:07:46]}  Ra5 {[%clk 0:01:38]} 104. Rg1 {[%clk 0:06:20]}  Ra3 {[%clk 0:01:57]} 105. Rb1 {[%clk 0:05:14]}  Rg3 {[%clk 0:01:50]}
106. Rh1 {[%clk 0:05:15]}  Rh3 {[%clk 0:02:16]} 107. Rg1 {[%clk 0:05:42]}  Ra3 {[%clk 0:02:17]} 108. Rg4 {[%clk 0:02:56]}  Kh5 {[%clk 0:02:23]}
109. Rg5+ {[%clk 0:02:17]}  Kh4 {[%clk 0:01:14]} 110. Rg1 {[%clk 0:01:31]}  Rb3 {[%clk 0:01:37]} 111. Rg8 {[%clk 0:01:19]}  Rb5 {[%clk 0:01:58]}
112. Rg4 {[%clk 0:01:28]}  Kh5 {[%clk 0:02:13]} 113. Rg1 {[%clk 0:01:41]}  Kh6 {[%clk 0:02:20]} 114. Rg6+ {[%clk 0:02:01]}  Kh5 {[%clk 0:02:43]}
115. Rc6 {[%clk 0:01:52]}  Kh4 {[%clk 0:02:29]} 116. Rc1 {[%clk 0:00:54]}  Rb3 {[%clk 0:02:49]} 117. Rh1 {[%clk 0:00:46]}  Rh3 {[%clk 0:03:13]}
118. Rg1 {[%clk 0:01:13]}  Ra3 {[%clk 0:03:35]} 119. Rg7 {[%clk 0:01:17]}  Ra5 {[%clk 0:03:58]} 120. Rg4 {[%clk 0:01:21]}  Kh5 {[%clk 0:04:19]}
121. Rg2 {[%clk 0:01:31]}  Kh6 {[%clk 0:04:37]} 122. Rg6+ {[%clk 0:01:53]}  Kh5 {[%clk 0:05:01]} 123. Rc6 {[%clk 0:01:27]}  Kh4 {[%clk 0:05:22]}
124. Rb6 {[%clk 0:01:43]} 1/2-1/2

[Event "2026 European Womens Championship"]
[Site "Batumi, GE"]
[Date "2026.05.27"]
[Round "3"]
[White "Kochavi, Dana"]
[Black "Gaponenko, Inna"]
[Result "1/2-1/2"]
[Board "28"]
[TimeControl "5400+30"]
[WhiteFideId "2837137"]
[BlackFideId "14101181"]
[WhiteElo "2209"]
[BlackElo "2331"]
[WhiteTitle "FM"]
[BlackTitle "IM"]
[WhiteClock "0:23:03"]
[BlackClock "0:07:56"]
[Variant "Standard"]

1. e4 {[%clk 1:30:58]}  c5 {[%clk 1:30:55]} 2. Nf3 {[%clk 1:31:24]}  d6 {[%clk 1:31:17]} 3. d4 {[%clk 1:31:49]}  cxd4 {[%clk 1:31:43]}
4. Nxd4 {[%clk 1:32:14]}  Nf6 {[%clk 1:32:07]} 5. Nc3 {[%clk 1:32:39]}  Nc6 {[%clk 1:32:22]} 6. Bg5 {[%clk 1:33:03]}  Bd7 {[%clk 1:32:40]}
7. f4 {[%clk 1:30:38]}  Qb6 {[%clk 1:10:27]} 8. Nb3 {[%clk 1:25:20]}  Ng4 {[%clk 0:51:33]} 9. Qd2 {[%clk 1:18:41]}  Qe3+ {[%clk 0:47:47]}
10. Qxe3 {[%clk 1:16:47]}  Nxe3 {[%clk 0:48:13]} 11. Kd2 {[%clk 1:16:48]}  Nxf1+ {[%clk 0:47:43]} 12. Raxf1 {[%clk 1:16:45]}  h6 {[%clk 0:41:00]}
13. Bh4 {[%clk 1:17:09]}  g5 {[%clk 0:41:22]} 14. fxg5 {[%clk 1:13:40]}  hxg5 {[%clk 0:41:49]} 15. Bxg5 {[%clk 1:10:10]}  Rg8 {[%clk 0:42:09]}
16. h4 {[%clk 1:10:20]}  f6 {[%clk 0:42:23]} 17. Bf4 {[%clk 1:08:46]}  Rxg2+ {[%clk 0:34:18]} 18. Kc1 {[%clk 1:07:42]}  Kf7 {[%clk 0:33:50]}
19. Nd5 {[%clk 1:01:43]}  e6 {[%clk 0:21:58]} 20. Ne3 {[%clk 0:55:48]}  Rg8 {[%clk 0:22:26]} 21. Nc4 {[%clk 0:55:42]}  e5 {[%clk 0:19:20]}
22. Bd2 {[%clk 0:50:08]}  Be6 {[%clk 0:06:20]} 23. Ne3 {[%clk 0:50:06]}  Bh6 {[%clk 0:06:42]} 24. Rf2 {[%clk 0:46:57]}  Bxe3 {[%clk 0:02:57]}
25. Bxe3 {[%clk 0:47:21]}  Bxb3 {[%clk 0:03:25]} 26. axb3 {[%clk 0:47:41]}  Ke7 {[%clk 0:03:39]} 27. Kd2 {[%clk 0:46:39]}  Nb8 {[%clk 0:02:15]}
28. h5 {[%clk 0:43:01]}  Nd7 {[%clk 0:02:37]} 29. b4 {[%clk 0:42:57]}  Rg4 {[%clk 0:01:04]} 30. Kd3 {[%clk 0:42:58]}  a6 {[%clk 0:01:30]}
31. c4 {[%clk 0:39:33]}  Ke6 {[%clk 0:01:51]} 32. h6 {[%clk 0:38:34]}  Rh8 {[%clk 0:01:47]} 33. Rhh2 {[%clk 0:36:27]}  Rh7 {[%clk 0:00:38]}
34. Rhg2 {[%clk 0:36:21]}  Rxg2 {[%clk 0:00:44]} 35. Rxg2 {[%clk 0:36:46]}  Kf7 {[%clk 0:01:12]} 36. c5 {[%clk 0:36:53]}  dxc5 {[%clk 0:01:08]}
37. bxc5 {[%clk 0:37:18]}  Nf8 {[%clk 0:01:00]} 38. Kc4 {[%clk 0:18:26]}  Ne6 {[%clk 0:00:24]} 39. b4 {[%clk 0:18:21]}  Nf4 {[%clk 0:01:10]}
40. Bxf4 {[%clk 0:11:56]}  exf4 {[%clk 0:01:36]} 41. Rf2 {[%clk 0:12:20]}  Ke6 {[%clk 0:01:13]} 42. Rxf4 {[%clk 0:12:45]}  Rxh6 {[%clk 0:01:40]}
43. Rf5 {[%clk 0:13:00]}  Rh4 {[%clk 0:01:47]} 44. Kd4 {[%clk 0:13:24]}  Rh1 {[%clk 0:01:48]} 45. Rd5 {[%clk 0:05:12]}  Rd1+ {[%clk 0:01:09]}
46. Kc4 {[%clk 0:05:36]}  Rc1+ {[%clk 0:01:14]} 47. Kb3 {[%clk 0:05:55]}  Rb1+ {[%clk 0:29:00]} 48. Kc3 {[%clk 0:35:35]}  Rc1+ {[%clk 0:21:03]}
49. Kb3 {[%clk 0:30:34]}  Rb1+ {[%clk 0:21:17]} 50. Kc3 {[%clk 0:30:56]}  Rc1+ {[%clk 0:21:42]} 51. Kb2 {[%clk 0:22:28]}  Rc4 {[%clk 0:17:34]}
52. Rd6+ {[%clk 0:22:43]}  Ke5 {[%clk 0:17:58]} 53. Kb3 {[%clk 0:23:09]}  Rd4 {[%clk 0:09:18]} 54. Rb6 {[%clk 0:23:33]}  Rd7 {[%clk 0:10:20]}
55. c6 {[%clk 0:22:22]}  bxc6 {[%clk 0:10:47]} 56. Rxc6 {[%clk 0:22:47]}  Rd6 {[%clk 0:09:31]} 57. Rc4 {[%clk 0:22:56]}  Kf4 {[%clk 0:07:24]}
58. Ka4 {[%clk 0:22:29]}  Ke3 {[%clk 0:07:48]} 59. Ka5 {[%clk 0:22:01]}  Kd3 {[%clk 0:07:56]} 60. Rc1 {[%clk 0:21:44]}  Kxe4 {[%clk 0:08:00]}
61. Rf1 {[%clk 0:21:35]}  f5 {[%clk 0:08:07]} 62. Re1+ {[%clk 0:22:01]}  Kf3 {[%clk 0:07:08]} 63. Rf1+ {[%clk 0:22:27]}  Kg4 {[%clk 0:07:31]}
64. Rg1+ {[%clk 0:22:53]}  Kh3 {[%clk 0:07:45]} 65. Rf1 {[%clk 0:22:41]}  Rf6 {[%clk 0:08:00]} 66. Rxf5 {[%clk 0:22:51]}  Rxf5+ {[%clk 0:08:27]}
67. Kxa6 {[%clk 0:23:15]}  Rf6+ {[%clk 0:07:40]} 68. Ka7 {[%clk 0:22:44]}  Rf7+ {[%clk 0:07:56]} 69. Ka6 {[%clk 0:23:03]} 1/2-1/2

[Event "2026 European Womens Championship"]
[Site "Batumi, GE"]
[Date "2026.05.27"]
[Round "3"]
[White "Rakhmangulova, Anastasiya"]
[Black "Siekanska, Maria"]
[Result "1-0"]
[Board "29"]
[TimeControl "5400+30"]
[WhiteFideId "14117479"]
[BlackFideId "21852650"]
[WhiteElo "2328"]
[BlackElo "2203"]
[WhiteTitle "WGM"]
[BlackTitle "WIM"]
[WhiteClock "0:04:10"]
[BlackClock "0:01:16"]
[Variant "Standard"]

1. e4 {[%clk 1:27:58]}  c5 {[%clk 1:30:52]} 2. Nf3 {[%clk 1:28:14]}  d6 {[%clk 1:31:15]} 3. d4 {[%clk 1:28:38]}  cxd4 {[%clk 1:31:39]}
4. Nxd4 {[%clk 1:29:05]}  Nf6 {[%clk 1:32:00]} 5. Nc3 {[%clk 1:29:30]}  a6 {[%clk 1:32:26]} 6. Be2 {[%clk 1:29:56]}  e5 {[%clk 1:30:45]}
7. Nb3 {[%clk 1:30:20]}  Be7 {[%clk 1:29:37]} 8. O-O {[%clk 1:30:42]}  O-O {[%clk 1:29:42]} 9. Be3 {[%clk 1:31:08]}  Be6 {[%clk 1:27:35]}
10. Bf3 {[%clk 1:31:31]}  b5 {[%clk 1:20:43]} 11. a4 {[%clk 1:31:50]}  b4 {[%clk 1:20:42]} 12. Nd5 {[%clk 1:32:14]}  Bxd5 {[%clk 1:19:24]}
13. exd5 {[%clk 1:32:39]}  Nbd7 {[%clk 1:11:46]} 14. a5 {[%clk 1:31:14]}  Qc7 {[%clk 1:09:18]} 15. Qd2 {[%clk 1:22:58]}  Qb7 {[%clk 1:05:14]}
16. Rfd1 {[%clk 1:21:39]}  h6 {[%clk 0:50:58]} 17. Ra4 {[%clk 1:06:55]}  Rab8 {[%clk 0:47:06]} 18. Nc1 {[%clk 1:06:56]}  Rfc8 {[%clk 0:39:52]}
19. Na2 {[%clk 0:50:05]}  b3 {[%clk 0:29:06]} 20. Rb4 {[%clk 0:48:54]}  bxc2 {[%clk 0:26:18]} 21. Rxb7 {[%clk 0:49:08]}  cxd1=Q+ {[%clk 0:26:43]}
22. Bxd1 {[%clk 0:49:26]}  Rxb7 {[%clk 0:27:11]} 23. Nb4 {[%clk 0:48:43]}  Bd8 {[%clk 0:21:40]} 24. Nc6 {[%clk 0:34:18]}  Rb5 {[%clk 0:20:51]}
25. Ba4 {[%clk 0:20:02]}  Rxd5 {[%clk 0:18:44]} 26. Qc2 {[%clk 0:20:28]}  Kf8 {[%clk 0:17:06]} 27. b4 {[%clk 0:20:47]}  Nb8 {[%clk 0:16:14]}
28. h3 {[%clk 0:13:34]}  e4 {[%clk 0:12:18]} 29. Qc4 {[%clk 0:11:32]}  Rd3 {[%clk 0:09:18]} 30. Ba7 {[%clk 0:08:36]}  Nxc6 {[%clk 0:04:30]}
31. Bxc6 {[%clk 0:09:02]}  Rd1+ {[%clk 0:03:52]} 32. Kh2 {[%clk 0:09:28]}  d5 {[%clk 0:01:51]} 33. Qxa6 {[%clk 0:09:35]}  Bc7+ {[%clk 0:00:55]}
34. g3 {[%clk 0:10:01]}  Rd8 {[%clk 0:01:10]} 35. Bc5+ {[%clk 0:09:28]}  Kg8 {[%clk 0:01:22]} 36. Qb7 {[%clk 0:09:41]}  e3 {[%clk 0:00:59]}
37. Qxc7 {[%clk 0:04:05]}  e2 {[%clk 0:00:54]} 38. Qxd8+ {[%clk 0:04:31]}  Kh7 {[%clk 0:01:20]} 39. Qe7 {[%clk 0:04:30]}  Ne4 {[%clk 0:00:46]}
40. Bxd5 {[%clk 0:04:43]}  e1=Q {[%clk 0:00:35]} 41. Bxe4+ {[%clk 0:03:15]}  g6 {[%clk 0:00:53]} 42. Qxf7+ {[%clk 0:03:42]}  Kh8 {[%clk 0:01:16]}
43. Qe8+ {[%clk 0:04:10]} 1-0

[Event "2026 European Womens Championship"]
[Site "Batumi, GE"]
[Date "2026.05.27"]
[Round "3"]
[White "Osmak, Yuliia"]
[Black "Rodriguez Redondo, Adhara"]
[Result "1/2-1/2"]
[Board "30"]
[TimeControl "5400+30"]
[WhiteFideId "14101602"]
[BlackFideId "32065698"]
[WhiteElo "2451"]
[BlackElo "2200"]
[WhiteTitle "IM"]
[BlackTitle "WFM"]
[WhiteClock "0:29:32"]
[BlackClock "0:10:45"]
[Variant "Standard"]

1. c4 {[%clk 1:30:57]}  e6 {[%clk 1:30:54]} 2. Nc3 {[%clk 1:31:21]}  d5 {[%clk 1:31:17]} 3. d4 {[%clk 1:31:46]}  Bb4 {[%clk 1:31:42]}
4. e3 {[%clk 1:26:32]}  Nf6 {[%clk 1:31:29]} 5. a3 {[%clk 1:26:38]}  Bxc3+ {[%clk 1:31:26]} 6. bxc3 {[%clk 1:26:59]}  c6 {[%clk 1:31:04]}
7. a4 {[%clk 1:23:52]}  O-O {[%clk 1:31:04]} 8. Nf3 {[%clk 1:23:39]}  b6 {[%clk 1:28:28]} 9. Ba3 {[%clk 0:59:46]}  Re8 {[%clk 1:28:38]}
10. cxd5 {[%clk 0:55:37]}  cxd5 {[%clk 1:28:45]} 11. Ne5 {[%clk 0:54:27]}  Nbd7 {[%clk 1:12:59]} 12. Bb5 {[%clk 0:50:59]}  Qc7 {[%clk 1:10:59]}
13. Rc1 {[%clk 0:45:29]}  a6 {[%clk 1:01:33]} 14. Nxd7 {[%clk 0:42:47]}  Bxd7 {[%clk 0:47:39]} 15. Bd3 {[%clk 0:41:49]}  e5 {[%clk 0:43:36]}
16. O-O {[%clk 0:40:30]}  e4 {[%clk 0:36:35]} 17. Be2 {[%clk 0:40:52]}  Qc6 {[%clk 0:30:15]} 18. a5 {[%clk 0:38:22]}  b5 {[%clk 0:30:24]}
19. h3 {[%clk 0:36:59]}  Re6 {[%clk 0:25:00]} 20. Qb3 {[%clk 0:36:15]}  Rae8 {[%clk 0:22:40]} 21. Qb4 {[%clk 0:36:20]}  Qa8 {[%clk 0:22:14]}
22. Rc2 {[%clk 0:32:37]}  Qc8 {[%clk 0:18:48]} 23. Ra1 {[%clk 0:29:43]}  Rc6 {[%clk 0:16:08]} 24. Bf1 {[%clk 0:30:08]}  Rce6 {[%clk 0:14:29]}
25. Be2 {[%clk 0:30:04]}  Rc6 {[%clk 0:14:53]} 26. Bf1 {[%clk 0:30:29]}  h6 {[%clk 0:12:14]} 27. Qb3 {[%clk 0:29:38]}  Rce6 {[%clk 0:10:51]}
28. Bc5 {[%clk 0:29:32]}  Rc6 {[%clk 0:10:45]} 1/2-1/2